[Event "*** Titled Tuesday Blitz"]
[Site "Chess.com"]
[Date "2019.09.03"]
[Round "6"]
[White "newauto"]
[Black "laboratorio25"]
[Result "0-1"]
[WhiteElo "1949"]
[BlackElo "2404"]
[TimeControl "180+2"]
[EndTime "16:18:55 PDT"]
[Termination "laboratorio25 won by resignation"]

1. e4 {[%clk 0:03:01.9]} 1... e6 {[%clk 0:03:00.9]} 2. d4 {[%clk 0:02:59.8]}
2... d5 {[%clk 0:03:02.1]} 3. exd5 {[%clk 0:03:01.1]} 3... exd5 {[%clk
0:03:03.5]} 4. Nf3 {[%clk 0:03:02.2]} 4... Nf6 {[%clk 0:03:03.9]} 5. h3 {[%clk
0:03:00.5]} 5... Bd6 {[%clk 0:03:04.7]} 6. c4 {[%clk 0:03:00.5]} 6... dxc4
{[%clk 0:03:03.4]} 7. Bxc4 {[%clk 0:03:00.6]} 7... O-O {[%clk 0:02:55.2]} 8. O-O
{[%clk 0:03:00.4]} 8... h6 {[%clk 0:02:49.6]} 9. Nc3 {[%clk 0:02:59.5]} 9... c6
{[%clk 0:02:49.9]} 10. Be3 {[%clk 0:02:58.2]} 10... Nbd7 {[%clk 0:02:48.4]} 11.
a3 {[%clk 0:02:58.9]} 11... Nb6 {[%clk 0:02:49.3]} 12. Bd3 {[%clk 0:02:55.9]}
12... Nbd5 {[%clk 0:02:46.5]} 13. Qd2 {[%clk 0:02:51.7]} 13... Re8 {[%clk
0:02:38.1]} 14. Rae1 {[%clk 0:02:48.8]} 14... Be6 {[%clk 0:01:59]} 15. b4 {[%clk
0:02:39.5]} 15... Nxc3 {[%clk 0:01:59.3]} 16. Qxc3 {[%clk 0:02:38.9]} 16... Bd5
{[%clk 0:02:00.4]} 17. Ne5 {[%clk 0:02:36.2]} 17... Nd7 {[%clk 0:01:39.5]} 18.
f4 {[%clk 0:02:32.7]} 18... Nf6 {[%clk 0:01:30.3]} 19. Bb1 {[%clk 0:02:31.2]}
19... Be4 {[%clk 0:01:19.7]} 20. Ba2 {[%clk 0:02:12.8]} 20... Bd5 {[%clk
0:01:17.8]} 21. Nc4 {[%clk 0:02:06]} 21... Bf8 {[%clk 0:01:15.4]} 22. Bc1 {[%clk
0:02:00]} 22... b5 {[%clk 0:01:12.6]} 23. Ne5 {[%clk 0:01:47.7]} 23... Bxa2
{[%clk 0:01:13.2]} 24. Nxc6 {[%clk 0:01:46.8]} 24... Qc7 {[%clk 0:01:02.4]} 25.
Bb2 {[%clk 0:01:35.7]} 25... Bc4 {[%clk 0:00:52.4]} 26. Ne5 {[%clk 0:01:31.2]}
26... Nd5 {[%clk 0:00:46.5]} 27. Qd2 {[%clk 0:01:17.8]} 27... Bxf1 {[%clk
0:00:46.5]} 28. Rxf1 {[%clk 0:01:17.6]} 28... Rac8 {[%clk 0:00:43.6]} 29. f5
{[%clk 0:01:15.2]} 29... Qc2 {[%clk 0:00:43.9]} 30. Qxc2 {[%clk 0:01:10.1]}
30... Rxc2 {[%clk 0:00:45.8]} 31. Bc1 {[%clk 0:01:09.8]} 31... f6 {[%clk
0:00:44.5]} 32. Ng6 {[%clk 0:01:09.3]} 32... Ree2 {[%clk 0:00:44]} 33. Bf4
{[%clk 0:01:02.3]} 33... Rxg2+ {[%clk 0:00:40.8]} 34. Kh1 {[%clk 0:01:02]} 34...
Nxf4 {[%clk 0:00:40.4]} 35. Rxf4 {[%clk 0:01:01.7]} 35... Rh2+ {[%clk 0:00:39]}
36. Kg1 {[%clk 0:01:02.1]} 36... Rcg2+ {[%clk 0:00:39.9]} 37. Kf1 {[%clk
0:01:02.6]} 37... Ra2 {[%clk 0:00:40.7]} 38. Kg1 {[%clk 0:01:01.9]} 38... Bd6
{[%clk 0:00:39.8]} 0-1

[Event "*** Titled Tuesday Blitz"]
[Site "Chess.com"]
[Date "2019.09.03"]
[Round "6"]
[White "Lunaticx"]
[Black "BASSU1"]
[Result "0-1"]
[WhiteElo "2835"]
[BlackElo "2571"]
[TimeControl "180+2"]
[EndTime "16:19:08 PDT"]
[Termination "BASSU1 won on time"]

1. e4 {[%clk 0:03:01.9]} 1... c5 {[%clk 0:03:00.4]} 2. Nf3 {[%clk 0:03:02.7]}
2... e6 {[%clk 0:03:00.5]} 3. c3 {[%clk 0:03:03.9]} 3... Nf6 {[%clk 0:02:57.5]}
4. e5 {[%clk 0:03:01.9]} 4... Nd5 {[%clk 0:02:58.4]} 5. Bc4 {[%clk 0:03:00]}
5... d6 {[%clk 0:02:54.7]} 6. exd6 {[%clk 0:02:50.5]} 6... Bxd6 {[%clk
0:02:51.3]} 7. d4 {[%clk 0:02:51.4]} 7... cxd4 {[%clk 0:02:45.8]} 8. Qxd4 {[%clk
0:02:43.1]} 8... O-O {[%clk 0:02:40.6]} 9. Bg5 {[%clk 0:02:23.9]} 9... Qc7
{[%clk 0:02:27.1]} 10. Bxd5 {[%clk 0:02:20]} 10... exd5 {[%clk 0:02:26.4]} 11.
O-O {[%clk 0:02:20.7]} 11... Be6 {[%clk 0:02:21.4]} 12. Nbd2 {[%clk 0:02:19]}
12... Nc6 {[%clk 0:02:13.4]} 13. Qh4 {[%clk 0:02:19.9]} 13... f6 {[%clk
0:02:02.3]} 14. Be3 {[%clk 0:02:18]} 14... Ne5 {[%clk 0:01:58]} 15. h3 {[%clk
0:02:09.3]} 15... Rae8 {[%clk 0:01:31.5]} 16. Qa4 {[%clk 0:02:03.8]} 16... Qc8
{[%clk 0:01:25.4]} 17. Bf4 {[%clk 0:00:32.7]} 17... Bxh3 {[%clk 0:01:16.8]} 18.
gxh3 {[%clk 0:00:29.5]} 18... Qxh3 {[%clk 0:01:16.5]} 19. Nxe5 {[%clk
0:00:30.7]} 19... fxe5 {[%clk 0:01:15.6]} 20. Bg3 {[%clk 0:00:31.7]} 20... Re6
{[%clk 0:00:54.2]} 21. Qb5 {[%clk 0:00:21]} 21... Rd8 {[%clk 0:00:42.4]} 22.
Qxd5 {[%clk 0:00:20.8]} 22... Bc7 {[%clk 0:00:43]} 23. Qc4 {[%clk 0:00:21.1]}
23... Bb6 {[%clk 0:00:43.2]} 24. Ne4 {[%clk 0:00:21.8]} 24... Kh8 {[%clk
0:00:36.8]} 25. Rad1 {[%clk 0:00:22.4]} 25... Rh6 {[%clk 0:00:29.7]} 26. Rxd8+
{[%clk 0:00:14.8]} 26... Bxd8 {[%clk 0:00:30.7]} 27. f3 {[%clk 0:00:11.5]} 27...
Bb6+ {[%clk 0:00:31.1]} 0-1

[Event "*** Titled Tuesday Blitz"]
[Site "Chess.com"]
[Date "2019.09.03"]
[Round "6"]
[White "vanyakuba"]
[Black "Chigorinetz"]
[Result "0-1"]
[WhiteElo "2357"]
[BlackElo "2570"]
[TimeControl "180+2"]
[EndTime "16:19:12 PDT"]
[Termination "Chigorinetz won on time"]

1. e4 {[%clk 0:03:01.9]} 1... c5 {[%clk 0:03:00.8]} 2. c3 {[%clk 0:03:02.6]}
2... Nc6 {[%clk 0:03:00.9]} 3. d4 {[%clk 0:03:03]} 3... cxd4 {[%clk 0:03:01.7]}
4. cxd4 {[%clk 0:03:04.9]} 4... d5 {[%clk 0:03:03.6]} 5. exd5 {[%clk 0:03:06]}
5... Qxd5 {[%clk 0:03:04.5]} 6. Nf3 {[%clk 0:03:07.7]} 6... e5 {[%clk
0:03:05.3]} 7. Nc3 {[%clk 0:03:07.3]} 7... Bb4 {[%clk 0:03:06.6]} 8. Bd2 {[%clk
0:03:08.3]} 8... Bxc3 {[%clk 0:03:07.5]} 9. Bxc3 {[%clk 0:03:09.9]} 9... e4
{[%clk 0:03:08.6]} 10. Ne5 {[%clk 0:03:11.3]} 10... Nxe5 {[%clk 0:03:09.5]} 11.
dxe5 {[%clk 0:03:13.2]} 11... Ne7 {[%clk 0:03:10.7]} 12. Qa4+ {[%clk 0:03:12.2]}
12... Bd7 {[%clk 0:03:10.6]} 13. Qa3 {[%clk 0:03:13]} 13... Qe6 {[%clk
0:03:10.5]} 14. Rd1 {[%clk 0:03:05]} 14... O-O {[%clk 0:03:10.7]} 15. Rd6 {[%clk
0:02:28.3]} 15... Qf5 {[%clk 0:03:10.4]} 16. Be2 {[%clk 0:02:29.1]} 16... Bc6
{[%clk 0:03:02.2]} 17. O-O {[%clk 0:02:07.3]} 17... Ng6 {[%clk 0:03:02.6]} 18.
Qa5 {[%clk 0:01:03.6]} 18... Rfe8 {[%clk 0:02:59]} 19. e6 {[%clk 0:01:03.7]}
19... fxe6 {[%clk 0:02:51.7]} 20. Bc4 {[%clk 0:00:43.5]} 20... Qxa5 {[%clk
0:02:51.1]} 21. Bxa5 {[%clk 0:00:44.3]} 21... Kf7 {[%clk 0:02:51.1]} 22. Rfd1
{[%clk 0:00:40.4]} 22... Rac8 {[%clk 0:02:49]} 23. Bc3 {[%clk 0:00:34.8]} 23...
Nf4 {[%clk 0:02:34.3]} 24. g3 {[%clk 0:00:17.9]} 24... Nh5 {[%clk 0:02:32.8]}
25. Be5 {[%clk 0:00:07.7]} 25... Nf6 {[%clk 0:02:32.7]} 26. h3 {[%clk
0:00:05.8]} 26... h5 {[%clk 0:02:32.4]} 27. b3 {[%clk 0:00:06.9]} 27... Re7
{[%clk 0:02:26]} 28. Be2 {[%clk 0:00:07.8]} 28... g6 {[%clk 0:02:18.9]} 29. Rc1
{[%clk 0:00:08.8]} 29... Rf8 {[%clk 0:02:14.5]} 30. Bd4 {[%clk 0:00:09.2]} 30...
Rd7 {[%clk 0:02:02.1]} 31. Rxd7+ {[%clk 0:00:09.1]} 31... Nxd7 {[%clk
0:02:01.8]} 32. Bxa7 {[%clk 0:00:09.7]} 32... Ra8 {[%clk 0:02:03]} 33. Bd4
{[%clk 0:00:09.7]} 33... Rxa2 {[%clk 0:02:03.5]} 34. Bc4 {[%clk 0:00:11.3]}
34... Ke7 {[%clk 0:01:58.8]} 35. b4 {[%clk 0:00:07]} 35... Ra4 {[%clk
0:01:50.8]} 36. b5 {[%clk 0:00:06.6]} 36... Bd5 {[%clk 0:01:39.3]} 37. Bxd5
{[%clk 0:00:02.8]} 37... exd5 {[%clk 0:01:39.3]} 38. Be3 {[%clk 0:00:02.5]}
38... Rb4 {[%clk 0:01:34.6]} 0-1

[Event "*** Titled Tuesday Blitz"]
[Site "Chess.com"]
[Date "2019.09.03"]
[Round "6"]
[White "tteshan"]
[Black "boasovietica"]
[Result "1-0"]
[WhiteElo "2206"]
[BlackElo "2441"]
[TimeControl "180+2"]
[EndTime "16:19:18 PDT"]
[Termination "tteshan won by resignation"]

1. d4 {[%clk 0:03:01.9]} 1... Nf6 {[%clk 0:02:59.7]} 2. c4 {[%clk 0:03:02.5]}
2... g6 {[%clk 0:02:58]} 3. Nc3 {[%clk 0:03:02.9]} 3... Bg7 {[%clk 0:02:59.1]}
4. e4 {[%clk 0:03:04.4]} 4... O-O {[%clk 0:03:00.3]} 5. f4 {[%clk 0:03:05.8]}
5... d6 {[%clk 0:03:00.8]} 6. Nf3 {[%clk 0:03:07.3]} 6... c5 {[%clk 0:03:01.1]}
7. d5 {[%clk 0:03:08.3]} 7... e6 {[%clk 0:03:02.3]} 8. Be2 {[%clk 0:03:09.3]}
8... exd5 {[%clk 0:03:03.2]} 9. cxd5 {[%clk 0:03:10.5]} 9... Re8 {[%clk
0:03:03.5]} 10. e5 {[%clk 0:03:12]} 10... dxe5 {[%clk 0:02:57.6]} 11. fxe5
{[%clk 0:03:13.3]} 11... Ng4 {[%clk 0:02:55.8]} 12. Bg5 {[%clk 0:03:14.9]} 12...
f6 {[%clk 0:02:31.1]} 13. exf6 {[%clk 0:03:12.7]} 13... Bxf6 {[%clk 0:02:31.5]}
14. Qd2 {[%clk 0:03:14.2]} 14... Bxg5 {[%clk 0:02:09.8]} 15. Qxg5 {[%clk
0:03:14.3]} 15... Ne3 {[%clk 0:02:07.3]} 16. Qxd8 {[%clk 0:03:00.6]} 16... Rxd8
{[%clk 0:02:07.8]} 17. Kf2 {[%clk 0:03:01.5]} 17... Ng4+ {[%clk 0:01:55.4]} 18.
Kg3 {[%clk 0:03:02]} 18... Na6 {[%clk 0:01:53.3]} 19. Bc4 {[%clk 0:02:48.1]}
19... Ne3 {[%clk 0:01:43.2]} 20. b3 {[%clk 0:02:18.2]} 20... Nf5+ {[%clk
0:01:42.7]} 21. Kf2 {[%clk 0:02:17.6]} 21... Nd6 {[%clk 0:01:43.3]} 22. Nb5
{[%clk 0:02:17.3]} 22... Nxb5 {[%clk 0:01:39.7]} 23. Bxb5 {[%clk 0:02:17.7]}
23... Nc7 {[%clk 0:01:40.6]} 24. Bc4 {[%clk 0:02:15.6]} 24... Kg7 {[%clk
0:00:54.6]} 25. Rad1 {[%clk 0:01:56.7]} 25... b5 {[%clk 0:00:28.3]} 26. d6
{[%clk 0:01:57.2]} 26... bxc4 {[%clk 0:00:15.2]} 27. dxc7 {[%clk 0:01:57.7]}
27... Rxd1 {[%clk 0:00:16.7]} 28. Rxd1 {[%clk 0:01:58.2]} 28... cxb3 {[%clk
0:00:18.1]} 29. axb3 {[%clk 0:01:59.3]} 29... Be6 {[%clk 0:00:18.1]} 30. Rd8
{[%clk 0:01:56]} 30... Rc8 {[%clk 0:00:18.5]} 31. Ng5 {[%clk 0:01:57.3]} 31...
Bf5 {[%clk 0:00:16.1]} 32. Rxc8 {[%clk 0:01:54.2]} 32... Bxc8 {[%clk 0:00:16.9]}
33. Ne4 {[%clk 0:01:55.7]} 33... Kf7 {[%clk 0:00:12.8]} 34. Nd6+ {[%clk
0:01:56.5]} 34... Ke7 {[%clk 0:00:11.2]} 35. Nxc8+ {[%clk 0:01:57.7]} 35... Kd7
{[%clk 0:00:12.5]} 36. Nxa7 {[%clk 0:01:59.2]} 36... Kxc7 {[%clk 0:00:13.9]} 37.
Nb5+ {[%clk 0:01:55.6]} 37... Kb6 {[%clk 0:00:15.2]} 38. Nc3 {[%clk 0:01:55.2]}
38... Ka5 {[%clk 0:00:16.5]} 39. Nd5 {[%clk 0:01:53.9]} 39... Kb5 {[%clk
0:00:17.7]} 40. Ke3 {[%clk 0:01:54.8]} 40... c4 {[%clk 0:00:19]} 41. bxc4+
{[%clk 0:01:55.2]} 41... Kxc4 {[%clk 0:00:19.9]} 42. Nf6 {[%clk 0:01:47.8]}
42... h6 {[%clk 0:00:20]} 43. Ng8 {[%clk 0:01:47.1]} 43... h5 {[%clk 0:00:20]}
44. Kf4 {[%clk 0:01:48.6]} 44... Kd4 {[%clk 0:00:20.7]} 45. Ne7 {[%clk
0:01:48.2]} 45... Kd3 {[%clk 0:00:15]} 46. Nxg6 {[%clk 0:01:47.2]} 46... Ke2
{[%clk 0:00:16.2]} 47. Nh4 {[%clk 0:01:46.7]} 47... Kf2 {[%clk 0:00:17]} 48. Kg5
{[%clk 0:01:47.9]} 48... Kg1 {[%clk 0:00:18.4]} 49. h3 {[%clk 0:01:48.2]} 49...
Kh2 {[%clk 0:00:19.3]} 50. Kxh5 {[%clk 0:01:49.3]} 50... Kg3 {[%clk 0:00:20.6]}
51. Kg5 {[%clk 0:01:49.9]} 1-0

[Event "*** Titled Tuesday Blitz"]
[Site "Chess.com"]
[Date "2019.09.03"]
[Round "6"]
[White "kleinebeer98"]
[Black "Last7Samurai"]
[Result "1-0"]
[WhiteElo "2678"]
[BlackElo "2770"]
[TimeControl "180+2"]
[EndTime "16:19:22 PDT"]
[Termination "kleinebeer98 won by resignation"]

1. e4 {[%clk 0:02:42.9]} 1... e6 {[%clk 0:03:00.4]} 2. d4 {[%clk 0:02:42.3]}
2... d5 {[%clk 0:03:00.4]} 3. Nc3 {[%clk 0:02:41.4]} 3... Nf6 {[%clk 0:03:01.2]}
4. e5 {[%clk 0:02:41.9]} 4... Nfd7 {[%clk 0:03:02.4]} 5. f4 {[%clk 0:02:43.2]}
5... c5 {[%clk 0:03:04.1]} 6. Nf3 {[%clk 0:02:43.7]} 6... Nc6 {[%clk 0:03:05.7]}
7. Be3 {[%clk 0:02:45.2]} 7... Be7 {[%clk 0:03:06.5]} 8. Be2 {[%clk 0:02:39.5]}
8... O-O {[%clk 0:03:07.5]} 9. O-O {[%clk 0:02:40.6]} 9... a6 {[%clk 0:03:08.2]}
10. Kh1 {[%clk 0:02:39.9]} 10... b5 {[%clk 0:03:08.1]} 11. a3 {[%clk 0:02:34.8]}
11... Bb7 {[%clk 0:03:08.8]} 12. Qe1 {[%clk 0:02:31.7]} 12... cxd4 {[%clk
0:02:58.1]} 13. Nxd4 {[%clk 0:02:27.8]} 13... Nxd4 {[%clk 0:03:00]} 14. Bxd4
{[%clk 0:02:29.7]} 14... f6 {[%clk 0:03:01.2]} 15. Bg4 {[%clk 0:02:17.4]} 15...
f5 {[%clk 0:02:54]} 16. Bf3 {[%clk 0:02:15.4]} 16... Nc5 {[%clk 0:02:53.9]} 17.
Qe3 {[%clk 0:02:09.4]} 17... Ne4 {[%clk 0:02:51.3]} 18. Bxe4 {[%clk 0:02:09.8]}
18... dxe4 {[%clk 0:02:49.7]} 19. Rad1 {[%clk 0:02:08.3]} 19... Qc8 {[%clk
0:02:50.3]} 20. Bb6 {[%clk 0:02:08.5]} 20... Qc6 {[%clk 0:02:46.6]} 21. Rd2
{[%clk 0:01:46.4]} 21... a5 {[%clk 0:02:45.2]} 22. Rfd1 {[%clk 0:01:44.1]} 22...
b4 {[%clk 0:02:45]} 23. axb4 {[%clk 0:01:40.2]} 23... axb4 {[%clk 0:02:46.9]}
24. Ne2 {[%clk 0:01:28.9]} 24... Ba6 {[%clk 0:02:46.3]} 25. Ng3 {[%clk
0:01:24.1]} 25... Bc4 {[%clk 0:02:41.1]} 26. Rd7 {[%clk 0:01:18.1]} 26... Rf7
{[%clk 0:02:35.6]} 27. Rc7 {[%clk 0:01:09.7]} 27... Qb5 {[%clk 0:02:27.3]} 28.
Bc5 {[%clk 0:00:56.1]} 28... Bxc5 {[%clk 0:02:13.2]} 29. Rxc5 {[%clk 0:00:58]}
29... Rd7 {[%clk 0:02:00.9]} 30. Re1 {[%clk 0:00:42.3]} 30... Qb6 {[%clk
0:01:58.6]} 31. Rc8+ {[%clk 0:00:40.7]} 31... Rxc8 {[%clk 0:01:45.7]} 32. Qxb6
{[%clk 0:00:40.6]} 32... Bd5 {[%clk 0:01:46.5]} 33. Qf2 {[%clk 0:00:23.5]} 33...
e3 {[%clk 0:01:47.1]} 34. Rxe3 {[%clk 0:00:21.9]} 34... Rdc7 {[%clk 0:01:43.2]}
35. Re2 {[%clk 0:00:21.2]} 35... b3 {[%clk 0:01:44.3]} 36. c3 {[%clk 0:00:22]}
36... Ra8 {[%clk 0:01:42]} 37. h3 {[%clk 0:00:22.2]} 37... Ra1+ {[%clk
0:01:41.8]} 38. Kh2 {[%clk 0:00:23.6]} 38... Rca7 {[%clk 0:01:41.3]} 39. Re1
{[%clk 0:00:22.2]} 39... R1a2 {[%clk 0:01:42.1]} 40. Nf1 {[%clk 0:00:20.5]}
40... Rc7 {[%clk 0:01:41.9]} 41. Ne3 {[%clk 0:00:17.9]} 41... Be4 {[%clk
0:01:43]} 42. c4 {[%clk 0:00:17.2]} 42... h6 {[%clk 0:01:43.5]} 43. Rc1 {[%clk
0:00:17.6]} 43... Kh7 {[%clk 0:01:44.7]} 44. Rc3 {[%clk 0:00:18.8]} 44... Rb7
{[%clk 0:01:42.3]} 45. c5 {[%clk 0:00:16.3]} 45... Ra1 {[%clk 0:01:43.3]} 46. c6
{[%clk 0:00:16.6]} 46... Rc7 {[%clk 0:01:44.9]} 47. Rxb3 {[%clk 0:00:15.9]}
47... Rxc6 {[%clk 0:01:45.9]} 48. Rc3 {[%clk 0:00:17.3]} 48... Rb6 {[%clk
0:01:46.3]} 49. Nxf5 {[%clk 0:00:18.7]} 49... Rb4 {[%clk 0:01:38]} 50. Nd6
{[%clk 0:00:19]} 50... Bd5 {[%clk 0:01:38.9]} 51. Rc7 {[%clk 0:00:19.8]} 51...
Ra2 {[%clk 0:01:39.2]} 52. Qg3 {[%clk 0:00:20.4]} 1-0

[Event "*** Titled Tuesday Blitz"]
[Site "Chess.com"]
[Date "2019.09.03"]
[Round "6"]
[White "Denis_Palkovich"]
[Black "Keithonsky"]
[Result "0-1"]
[WhiteElo "2219"]
[BlackElo "2374"]
[TimeControl "180+2"]
[EndTime "16:19:28 PDT"]
[Termination "Keithonsky won by resignation"]

1. d4 {[%clk 0:03:01.9]} 1... Nf6 {[%clk 0:02:56.8]} 2. Bf4 {[%clk 0:03:01.7]}
2... c5 {[%clk 0:02:56.8]} 3. e3 {[%clk 0:03:00.5]} 3... Qb6 {[%clk 0:02:58.3]}
4. Na3 {[%clk 0:02:58.5]} 4... cxd4 {[%clk 0:02:57.8]} 5. exd4 {[%clk
0:02:55.6]} 5... d6 {[%clk 0:02:58.2]} 6. Nc4 {[%clk 0:02:51.1]} 6... Qd8 {[%clk
0:02:57.9]} 7. Nf3 {[%clk 0:02:44.8]} 7... g6 {[%clk 0:02:56.7]} 8. Bd3 {[%clk
0:02:37.6]} 8... Bg7 {[%clk 0:02:56.8]} 9. Qd2 {[%clk 0:02:38.3]} 9... Nc6
{[%clk 0:02:51.2]} 10. c3 {[%clk 0:02:38.5]} 10... O-O {[%clk 0:02:52.3]} 11.
Bh6 {[%clk 0:02:39.2]} 11... Bg4 {[%clk 0:02:47.7]} 12. Bxg7 {[%clk 0:02:19.2]}
12... Kxg7 {[%clk 0:02:49.6]} 13. Qf4 {[%clk 0:02:20.4]} 13... Qc8 {[%clk
0:02:47]} 14. O-O {[%clk 0:02:06.7]} 14... Nh5 {[%clk 0:02:41]} 15. Qe3 {[%clk
0:01:57.6]} 15... Re8 {[%clk 0:02:32.2]} 16. d5 {[%clk 0:01:54.8]} 16... Nb8
{[%clk 0:02:25.5]} 17. h3 {[%clk 0:01:44.9]} 17... Bxf3 {[%clk 0:02:21.6]} 18.
Qxf3 {[%clk 0:01:46.8]} 18... Nd7 {[%clk 0:02:20.7]} 19. a4 {[%clk 0:01:21.2]}
19... Nb6 {[%clk 0:02:10.2]} 20. Ne3 {[%clk 0:01:14.5]} 20... e5 {[%clk
0:02:05.5]} 21. dxe6 {[%clk 0:01:13.9]} 21... fxe6 {[%clk 0:02:07.4]} 22. Ng4
{[%clk 0:01:04.3]} 22... Rf8 {[%clk 0:02:08]} 23. Qe3 {[%clk 0:01:04]} 23... Nf4
{[%clk 0:02:09.5]} 24. Qd4+ {[%clk 0:00:41.5]} 24... e5 {[%clk 0:02:10.2]} 25.
Qxd6 {[%clk 0:00:39.1]} 25... Qb8 {[%clk 0:02:09.9]} 26. Qxe5+ {[%clk
0:00:10.8]} 26... Qxe5 {[%clk 0:02:08.1]} 27. Nxe5 {[%clk 0:00:12.7]} 27... Rae8
{[%clk 0:02:08.7]} 28. Rfe1 {[%clk 0:00:12.7]} 28... Rxe5 {[%clk 0:02:09.8]} 29.
Rxe5 {[%clk 0:00:13.9]} 29... Nxd3 {[%clk 0:02:11.4]} 30. Re7+ {[%clk
0:00:14.7]} 30... Rf7 {[%clk 0:02:12.2]} 31. Rxf7+ {[%clk 0:00:14]} 31... Kxf7
{[%clk 0:02:14.1]} 32. a5 {[%clk 0:00:14.9]} 32... Nc4 {[%clk 0:02:15.2]} 33. b4
{[%clk 0:00:13.8]} 33... Nde5 {[%clk 0:02:14.2]} 34. Rd1 {[%clk 0:00:12.4]}
34... g5 {[%clk 0:02:15.5]} 35. g3 {[%clk 0:00:12.6]} 35... Ke6 {[%clk
0:02:13.2]} 36. f4 {[%clk 0:00:12.3]} 36... gxf4 {[%clk 0:02:14.3]} 37. gxf4
{[%clk 0:00:14.2]} 37... Nf7 {[%clk 0:02:12.7]} 38. Kf2 {[%clk 0:00:13.8]} 38...
Nfd6 {[%clk 0:02:13.3]} 39. Kf3 {[%clk 0:00:12.8]} 39... h5 {[%clk 0:02:14.8]}
40. Rg1 {[%clk 0:00:12.6]} 40... Nf7 {[%clk 0:02:12.6]} 41. Rg6+ {[%clk
0:00:09.3]} 41... Ke7 {[%clk 0:02:13.8]} 42. Rg7 {[%clk 0:00:08.3]} 42... Kf6
{[%clk 0:02:14.3]} 43. Rg8 {[%clk 0:00:09.7]} 43... Nfd6 {[%clk 0:02:11.5]} 44.
Ra8 {[%clk 0:00:08.7]} 44... a6 {[%clk 0:02:11.9]} 45. Rf8+ {[%clk 0:00:08.8]}
45... Kg7 {[%clk 0:02:11.4]} 46. Rd8 {[%clk 0:00:08.9]} 46... Kg6 {[%clk
0:02:10.9]} 47. Rd7 {[%clk 0:00:09.3]} 47... Kf6 {[%clk 0:02:12.3]} 48. Rh7
{[%clk 0:00:09.8]} 48... Kg6 {[%clk 0:02:13.4]} 49. Rc7 {[%clk 0:00:10.1]} 49...
h4 {[%clk 0:02:15.1]} 50. Ke2 {[%clk 0:00:10]} 50... Kf5 {[%clk 0:02:16.4]} 51.
Kd3 {[%clk 0:00:09.7]} 51... Kxf4 {[%clk 0:02:15.9]} 52. Rxc4+ {[%clk
0:00:08.3]} 52... Nxc4 {[%clk 0:02:17.8]} 53. Kxc4 {[%clk 0:00:10.2]} 53... Kg3
{[%clk 0:02:19.7]} 54. b5 {[%clk 0:00:10]} 54... Kxh3 {[%clk 0:02:20.7]} 55.
bxa6 {[%clk 0:00:08.9]} 55... bxa6 {[%clk 0:02:22.6]} 56. Kd4 {[%clk 0:00:05.7]}
56... Kg4 {[%clk 0:02:23.9]} 57. c4 {[%clk 0:00:07.2]} 57... h3 {[%clk
0:02:25.2]} 58. c5 {[%clk 0:00:09.1]} 58... h2 {[%clk 0:02:26.7]} 59. c6 {[%clk
0:00:11]} 59... h1=Q {[%clk 0:02:28]} 60. c7 {[%clk 0:00:12.9]} 60... Qb7 {[%clk
0:02:29.4]} 0-1

[Event "*** Titled Tuesday Blitz"]
[Site "Chess.com"]
[Date "2019.09.03"]
[Round "6"]
[White "kosmeg"]
[Black "VladimirBelous"]
[Result "0-1"]
[WhiteElo "2418"]
[BlackElo "2723"]
[TimeControl "180+2"]
[EndTime "16:19:41 PDT"]
[Termination "VladimirBelous won by resignation"]

1. d4 {[%clk 0:03:01.9]} 1... c5 {[%clk 0:03:01.7]} 2. dxc5 {[%clk 0:02:58.1]}
2... e6 {[%clk 0:03:00.7]} 3. Nc3 {[%clk 0:02:59.2]} 3... Bxc5 {[%clk
0:03:01.4]} 4. Ne4 {[%clk 0:03:00.4]} 4... Nf6 {[%clk 0:02:53.6]} 5. Nxc5 {[%clk
0:03:01]} 5... Qa5+ {[%clk 0:02:55.3]} 6. c3 {[%clk 0:03:02.4]} 6... Qxc5 {[%clk
0:02:56.8]} 7. Qd4 {[%clk 0:03:03.9]} 7... Qxd4 {[%clk 0:02:55.8]} 8. cxd4
{[%clk 0:03:05]} 8... Nc6 {[%clk 0:02:57.7]} 9. e3 {[%clk 0:03:06.1]} 9... Nb4
{[%clk 0:02:57.6]} 10. Kd1 {[%clk 0:02:56]} 10... b6 {[%clk 0:02:50.8]} 11. Bd2
{[%clk 0:02:55.5]} 11... Nbd5 {[%clk 0:02:49.5]} 12. Bd3 {[%clk 0:02:50.4]}
12... Bb7 {[%clk 0:02:50.3]} 13. f3 {[%clk 0:02:42.8]} 13... g5 {[%clk
0:02:42.7]} 14. Ne2 {[%clk 0:02:39.3]} 14... g4 {[%clk 0:02:35.3]} 15. e4 {[%clk
0:02:39.7]} 15... gxf3 {[%clk 0:02:35.4]} 16. gxf3 {[%clk 0:02:40.3]} 16... Ne7
{[%clk 0:02:36.5]} 17. Rg1 {[%clk 0:02:31.9]} 17... Ng6 {[%clk 0:02:33.5]} 18.
Bg5 {[%clk 0:02:05.5]} 18... Nh5 {[%clk 0:02:28.6]} 19. Kd2 {[%clk 0:02:06.1]}
19... Bc6 {[%clk 0:02:04.3]} 20. Rac1 {[%clk 0:01:53.8]} 20... a5 {[%clk
0:01:48.2]} 21. Nc3 {[%clk 0:01:54.5]} 21... Nhf4 {[%clk 0:01:45.8]} 22. Bf1
{[%clk 0:01:54.6]} 22... h6 {[%clk 0:01:40.5]} 23. Bf6 {[%clk 0:01:53.3]} 23...
Rg8 {[%clk 0:01:42]} 24. Ke3 {[%clk 0:01:49.7]} 24... Nh5 {[%clk 0:01:41.3]} 25.
Bh4 {[%clk 0:01:29.9]} 25... Rf8 {[%clk 0:01:38.4]} 26. Nb5 {[%clk 0:01:23.1]}
26... Nxh4 {[%clk 0:01:22.4]} 27. Nc7+ {[%clk 0:01:06.6]} 27... Ke7 {[%clk
0:01:23.2]} 28. Nxa8 {[%clk 0:01:07]} 28... Rxa8 {[%clk 0:01:23.2]} 29. Bc4
{[%clk 0:00:50]} 29... Nf6 {[%clk 0:01:13]} 30. Bd3 {[%clk 0:00:44.8]} 30... Ng6
{[%clk 0:01:10.1]} 31. a3 {[%clk 0:00:43.6]} 31... a4 {[%clk 0:01:11.3]} 32. Rc2
{[%clk 0:00:40.7]} 32... Ra5 {[%clk 0:01:12.2]} 33. Rgg2 {[%clk 0:00:36.5]}
33... Rh5 {[%clk 0:01:12.8]} 34. Rc4 {[%clk 0:00:36.3]} 34... Rh3 {[%clk
0:01:10.7]} 35. Rb4 {[%clk 0:00:32.9]} 35... Nh4 {[%clk 0:01:09.6]} 36. Rf2
{[%clk 0:00:34.2]} 36... Ng4+ {[%clk 0:01:10.1]} 37. Ke2 {[%clk 0:00:29.8]}
37... Nxf2 {[%clk 0:01:12]} 38. Kxf2 {[%clk 0:00:31.3]} 38... Rxf3+ {[%clk
0:01:13.3]} 39. Ke2 {[%clk 0:00:29.4]} 39... Rh3 {[%clk 0:01:14.2]} 40. Rxb6
{[%clk 0:00:29.4]} 40... Nf3 {[%clk 0:01:15.5]} 41. d5 {[%clk 0:00:25.1]} 41...
Nd4+ {[%clk 0:01:15.9]} 42. Kd2 {[%clk 0:00:25.5]} 42... exd5 {[%clk 0:01:17.3]}
43. exd5 {[%clk 0:00:24.9]} 43... Bxd5 {[%clk 0:01:18.9]} 44. Rb4 {[%clk
0:00:25.7]} 44... Rxh2+ {[%clk 0:01:17.3]} 45. Kc3 {[%clk 0:00:24.5]} 45... Nc6
{[%clk 0:01:10.4]} 46. Rxa4 {[%clk 0:00:24.2]} 46... h5 {[%clk 0:01:09.6]} 47.
Ra8 {[%clk 0:00:23.5]} 47... Ne5 {[%clk 0:01:08.7]} 48. Bf5 {[%clk 0:00:22.4]}
48... Bxa8 {[%clk 0:01:09.3]} 0-1